bitfinex/quotes_ETHUSD_20241103
["timestamp","ask_amount","ask_price","bid_price","bid_amount"]
[1730657917751,5.12098842,2443.9,2443.7,0.0604317]
[1730657918272,2.12098842,2443.8,2443.7,0.0604317]
[1730657918486,3.04225326,2443.8,2443.7,0.0604317]
[1730657918644,6.04581602,2443.8,2443.7,0.0604317]
[1730657920372,3.92126484,2443.8,2443.7,0.0604317]
[1730657925181,7.29537392,2443.8,2443.7,0.0604317]
[1730657925475,11.38735392,2443.8,2443.7,0.0604317]
[1730657926383,7.29537392,2443.8,2443.7,0.0604317]
[1730657927739,6.47521619,2443.8,2443.7,0.0604317]
[1730657932352,3.92126484,2443.8,2443.7,0.0604317]
[1730657932588,6.47561186,2443.8,2443.7,0.0604317]
[1730657933387,3.92126484,2443.8,2443.7,0.0604317]
[1730657933587,6.47642171,2443.8,2443.7,0.0604317]
[1730657933947,3.92126484,2443.8,2443.7,0.0604317]
[1730657935562,0.92126484,2443.8,2443.7,0.0604317]
[1730657939888,3.0,2443.9,2443.7,0.0604317]
[1730657940092,5.55596625,2443.8,2443.7,0.0604317]
[1730657940992,3.0,2443.8,2443.7,0.0604317]
[1730657941291,7.92418,2443.8,2443.7,0.0604317]
[1730657941868,10.90614947,2443.8,2443.7,0.0604317]
[1730657942097,12.40594942,2443.8,2443.7,0.0604317]
[1730657945000,7.48176942,2443.8,2443.7,0.0604317]
[1730657945198,2.55688814,2443.8,2443.7,4.1525017]
[1730657945357,0.7622,2444.2,2443.8,4.09198]
[1730657945358,2.55688814,2443.9,2443.8,4.09198]
[1730657945688,2.55688814,2444.0,2443.7,4.1525717]
[1730657945896,2.13095174,2443.8,2443.7,4.1525017]
[1730657946302,2.55688814,2444.0,2443.7,4.1525017]
[1730657946501,2.1308289,2443.8,2443.7,4.1525017]
[1730657946752,2.13086204,2443.8,2443.7,4.1524917]
[1730657946866,2.55688814,2444.0,2443.7,4.1524917]
[1730657947796,2.13071272,2443.8,2443.7,4.1524917]
[1730657947973,2.55688814,2444.0,2443.8,4.09189]
[1730657948497,2.55688814,2444.0,2443.8,4.09198]
[1730657949302,2.55688814,2444.1,2443.8,4.09198]
[1730657949598,2.55639708,2444.1,2443.8,4.09198]
[1730657950288,2.13014794,2443.9,2443.8,4.09198]
[1730657952403,2.13014794,2444.0,2443.9,4.09182]
[1730657952621,2.1297184,2444.0,2443.9,4.09182]
[1730657953100,2.12971845,2444.0,2443.9,4.09182]
[1730657954305,2.12945029,2444.0,2443.9,4.09182]
[1730657958791,2.12867461,2444.0,2443.9,4.09182]
[1730657963439,3.0,2444.3,2443.9,4.09182]
[1730657963738,2.12826937,2444.0,2443.8,4.09196]
[1730657965222,2.59648863,2444.0,2443.7,0.0604317]
[1730657965539,2.96076937,2443.9,2443.7,0.0604317]
[1730657965747,2.12826937,2443.8,2443.7,0.0604317]
[1730657968134,2.12861187,2443.8,2443.7,0.0604317]
[1730657970609,0.8325,2443.9,2443.7,0.0604317]
[1730657970809,1.37172993,2443.9,2443.7,0.0604317]
[1730657971906,0.53922993,2443.9,2443.7,0.0604317]
[1730657972113,0.53922993,2443.9,2443.7,4.1525617]
[1730657972912,0.53922993,2443.9,2443.7,0.0604317]
[1730657973341,2.66764303,2443.9,2443.7,0.0604317]
[1730657973846,2.66764303,2443.9,2443.7,4.1525617]
[1730657974852,0.53922993,2443.9,2443.7,4.1525617]
[1730657975419,0.53922993,2443.9,2443.7,0.0604317]
[1730657975912,0.35392299,2443.8,2443.7,0.0604317]
[1730657976912,0.53922993,2443.9,2443.7,0.0604317]
[1730657978059,0.7551,2443.8,2443.7,0.0604317]
[1730657980231,3.7551,2443.8,2443.7,0.0604317]
[1730657980455,7.84708,2443.8,2443.7,0.0604317]
[1730657982359,3.7551,2443.8,2443.7,0.0604317]
[1730657982865,8.68670199,2443.8,2443.7,0.0604317]
[1730657988170,8.68670199,2443.8,2443.7,0.5604317]
[1730657989273,11.66741021,2443.8,2443.7,0.5604317]
[1730657989830,11.66808651,2443.8,2443.7,0.5604317]
[1730657991245,8.68670199,2443.8,2443.7,0.5604317]
[1730657992183,11.66835466,2443.8,2443.7,0.5604317]
[1730657992487,11.66835466,2443.8,2443.7,1.0604317]
[1730657993186,8.68670199,2443.8,2443.7,1.0604317]
[1730657996383,8.68670199,2443.8,2443.7,1.5604317]
[1730657997143,11.23927977,2443.8,2443.7,1.5604317]
[1730658000092,11.23961387,2443.8,2443.7,1.5604317]
[1730658000445,11.23961387,2443.8,2443.7,2.0604317]
[1730658000669,5.55291188,2443.8,2443.7,2.0604317]
[1730658000902,9.64489188,2443.8,2443.7,2.0604317]
[1730658001451,10.45629188,2443.8,2443.7,1.60971226]
[1730658001651,10.45629188,2443.8,2442.7,4.09373]
[1730658001652,4.09307,2443.2,2442.7,4.09373]
[1730658001966,7.16796015,2443.1,2442.5,0.0604317]
[1730658002165,7.0935,2442.9,2442.5,0.0604317]
[1730658002365,3.0,2442.9,2442.5,0.0604317]
[1730658002688,2.12745577,2443.0,2442.9,4.09349]
[1730658002887,2.12554358,2443.3,2442.9,0.48225944]
[1730658003115,2.12554358,2443.3,2442.8,1.22910438]
[1730658003116,0.8114,2443.3,2442.8,4.09355]
[1730658003405,2.12554358,2443.4,2442.9,4.09337]
[1730658003609,2.12554358,2443.4,2443.0,4.09324]
[1730658003791,2.12554358,2443.4,2443.1,4.09315]
[1730658004102,2.12554358,2443.5,2443.1,4.09306]
[1730658004958,7.09234,2443.6,2443.1,4.09306]
[1730658004959,2.12554358,2443.6,2443.3,4.09266]
[1730658005158,2.12554358,2443.6,2443.3,8.18539]
[1730658005363,2.12554358,2443.7,2443.4,4.09261]
[1730658006192,2.12554358,2443.6,2443.4,4.09265]
[1730658006397,2.12554358,2443.7,2443.4,4.09265]
[1730658006912,2.12554358,2443.8,2443.5,5.32146438]
[1730658007115,2.12554358,2443.7,2443.5,5.32146438]
[1730658007597,2.12718691,2443.8,2443.5,5.32146438]
[1730658007805,2.12718691,2443.8,2443.5,6.01279053]
[1730658008028,2.12718691,2443.8,2443.5,4.78368615]
[1730658008312,2.12718691,2443.7,2443.5,0.69132615]
[1730658008484,2.12718691,2443.7,2443.5,4.78379615]
[1730658008861,2.12718691,2443.8,2443.5,4.78379615]
[1730658009069,2.12718691,2443.7,2443.6,4.0923]
[1730658009268,2.12718691,2443.8,2443.6,4.0923]
[1730658010371,2.12718691,2443.8,2443.6,4.501485]
[1730658010588,2.55262429,2444.0,2443.6,4.501485]
[1730658010589,2.12718691,2443.9,2443.8,4.09198]
[1730658010989,2.12718691,2444.0,2443.8,4.09198]
[1730658011231,2.12718691,2443.9,2443.8,4.09198]
[1730658011418,2.12718691,2444.0,2443.7,5.32125438]
[1730658011618,2.12718691,2444.0,2443.9,4.09182]
[1730658011916,2.12954822,2444.0,2443.9,5.32092438]
[1730658012119,2.12954822,2444.1,2444.0,4.09165]
[1730658012301,2.12954822,2444.2,2443.9,4.09182]
[1730658013031,2.12954822,2444.2,2444.0,4.09161]
[1730658013341,2.12954822,2444.2,2444.1,4.09148]
[1730658013843,2.12954822,2444.2,2444.0,4.09164]
[1730658014426,2.12954822,2444.2,2444.0,8.18328]
[1730658014736,2.12954822,2444.3,2444.1,4.09148]
[1730658015299,2.12954822,2444.3,2444.0,4.09164]
[1730658016411,4.8721,2444.2,2443.7,4.09207]
[1730658016610,2.91024822,2444.2,2443.7,4.09207]
[1730658016933,2.12954822,2444.1,2443.7,4.09207]
[1730658017413,6.22102822,2444.1,2443.7,4.09207]
[1730658018049,7.33031904,2444.1,2443.6,4.09229]
[1730658018548,4.09224,2443.7,2443.2,4.09297]
[1730658018748,4.09224,2443.7,2443.1,4.09302]
[1730658018749,2.12954822,2443.7,2443.1,4.09302]
[1730658018935,6.22176822,2443.7,2443.2,4.09299]
[1730658019242,7.33029861,2443.7,2443.2,4.09299]
[1730658020639,6.2196603,2443.6,2443.0,4.09325]
[1730658020836,4.87947,2443.5,2443.0,4.09325]
[1730658021449,4.87947,2443.5,2443.1,4.09315]
[1730658021652,6.10022527,2443.5,2443.1,4.09315]
[1730658024004,2.00765527,2443.5,2443.2,4.09295]
[1730658024242,2.12728233,2443.6,2443.3,4.09276]
[1730658024446,2.12728233,2443.7,2443.3,4.09276]
[1730658025210,2.12728233,2443.6,2443.3,4.09282]
[1730658025410,2.12728233,2443.6,2443.2,4.09299]
[1730658025651,2.12805961,2443.7,2443.3,4.09275]
[1730658025839,3.38412272,2443.7,2443.3,4.09275]
[1730658026854,2.12805961,2443.7,2443.5,4.09248]
[1730658027342,5.12805961,2443.8,2443.5,4.09248]
[1730658027505,2.12805961,2443.7,2443.5,4.09248]
[1730658027910,2.12805961,2443.7,2443.4,4.09264]
[1730658028549,2.12805961,2443.7,2443.5,4.09241]
[1730658028754,2.12805961,2443.8,2443.6,4.0922]
[1730658028934,2.12805961,2443.9,2443.7,4.09209]
[1730658029141,3.34057153,2444.1,2443.7,4.09209]
[1730658029142,2.12805961,2444.0,2443.7,4.09209]
[1730658029711,2.12805961,2444.0,2443.8,4.09196]
[1730658030009,2.12805961,2444.0,2443.7,4.09209]
[1730658030214,7.43259982,2444.3,2443.7,4.09209]
[1730658030447,2.12870819,2444.0,2443.8,4.0919]
[1730658031749,2.12870819,2444.0,2443.7,4.09204]
[1730658031961,2.12870819,2444.0,2443.6,4.09232]
[1730658032118,2.91560819,2443.9,2443.4,4.09258]
[1730658032314,0.29156082,2443.8,2443.4,4.09258]
[1730658032513,2.91560819,2443.9,2443.4,4.09258]
[1730658032714,4.09201,2443.8,2443.4,4.09258]
[1730658033521,2.91560819,2443.9,2443.5,4.09244]
[1730658033735,0.7869,2443.9,2443.5,4.09244]
[1730658034515,2.12870819,2444.0,2443.6,4.09223]
[1730658034750,2.12870819,2444.0,2443.6,4.09232]
[1730658034953,0.8193,2444.1,2443.9,4.09182]
[1730658034954,2.12862524,2444.1,2443.9,4.09182]
[1730658035152,2.12862524,2444.2,2443.9,8.18356]
[1730658035351,2.12862524,2444.3,2443.9,4.09174]
[1730658035553,2.12862524,2444.3,2443.9,8.18346]
[1730658035923,2.12862524,2444.3,2443.9,4.09172]
[1730658036956,2.12862524,2444.3,2443.9,8.18343]
[1730658037260,2.12862524,2444.3,2443.7,4.09204]
[1730658037427,0.8193,2444.2,2444.1,0.5]
[1730658037744,2.94792524,2444.2,2444.1,0.5]
[1730658038323,0.8193,2444.2,2444.1,0.5]
[1730658042841,3.0,2444.7,2444.1,0.5]
[1730658043042,0.8193,2444.7,2444.4,4.09096]
[1730658043242,0.8193,2444.7,2444.3,4.09098]
[1730658043441,3.0,2444.8,2444.5,4.09079]
[1730658043770,0.709024,2444.8,2444.5,4.09079]
[1730658043972,3.0,2444.7,2444.3,4.09098]
[1730658044175,2.12807762,2444.7,2444.5,4.09081]
[1730658044418,2.12807762,2444.8,2444.6,4.09064]
[1730658044668,2.12807762,2444.9,2444.6,4.09064]
[1730658044965,2.12807762,2444.9,2444.7,4.09039]
[1730658045176,2.12807762,2445.0,2444.5,4.09069]
[1730658045347,3.08707222,2445.0,2444.6,4.09063]
[1730658045543,2.12807762,2445.0,2444.8,4.09016]
[1730658045749,2.12807762,2445.1,2444.8,4.09016]
[1730658045945,2.12807762,2445.1,2444.9,4.09012]
[1730658046151,2.12886259,2445.2,2444.9,4.09007]
[1730658046984,2.12886259,2445.2,2444.9,4.09005]
[1730658047290,2.55463511,2445.5,2444.9,4.09005]
[1730658047291,7.03732259,2445.5,2444.9,4.09005]
[1730658047478,0.70373226,2445.4,2445.1,4.08979]
[1730658047850,0.70373226,2445.4,2445.2,4.08959]
[1730658048245,4.90813,2445.7,2444.9,4.09004]
[1730658048246,2.94816259,2445.7,2444.9,4.09004]
[1730658048533,4.08922,2445.5,2445.0,4.08987]
[1730658048976,2.12886259,2445.6,2445.0,4.08987]
[1730658049167,7.03697259,2445.7,2445.0,4.08987]
[1730658049593,4.08903,2445.6,2445.0,4.08987]
[1730658049795,0.70371926,2445.5,2445.2,4.08954]
[1730658051720,0.70371926,2445.5,2445.1,4.08979]
[1730658052875,0.70371926,2445.5,2445.2,4.08964]
[1730658059902,0.70371926,2445.5,2445.1,4.0898]
[1730658060086,4.08898,2445.6,2445.1,4.0898]
[1730658060792,4.08939,2445.4,2444.9,4.09005]
[1730658063486,4.08939,2445.4,2445.0,4.08995]
[1730658064396,4.08939,2445.4,2444.9,4.09005]
[1730658064831,8.1788,2445.4,2444.9,4.09005]
[1730658065130,8.1788,2445.4,2444.6,4.09064]
[1730658065131,4.08981,2445.1,2444.6,4.09064]
[1730658065299,0.7812,2445.0,2444.6,4.09056]
[1730658066633,0.7812,2445.0,2444.2,4.09131]
[1730658066634,4.87135,2444.9,2444.4,4.09094]
[1730658066787,0.487135,2444.8,2444.4,4.09094]
[1730658067123,8.96164,2444.9,2444.4,4.09094]
[1730658067422,8.96164,2444.9,2444.2,4.09119]
[1730658067423,0.7812,2444.9,2444.1,0.5]
[1730658067631,0.7812,2444.9,2444.4,4.09098]
[1730658067810,0.7812,2444.9,2444.6,4.09057]
[1730658068127,0.7812,2444.9,2444.7,4.09035]
[1730658070421,0.7812,2445.1,2444.8,4.09023]
[1730658071142,0.7812,2445.1,2444.9,4.09004]
[1730658071305,0.7812,2445.1,2444.8,4.09023]
[1730658071505,0.7812,2445.1,2444.8,8.18045]
[1730658071803,0.7812,2445.1,2444.8,4.09022]
[1730658071999,6.067058,2445.1,2444.6,4.09054]
[1730658072247,4.09,2445.0,2444.5,4.09079]
[1730658072619,4.87134,2444.9,2444.5,4.09079]
[1730658072817,4.87134,2444.9,2444.3,4.09111]
[1730658073043,4.87134,2444.9,2444.1,4.59145]
[1730658073044,0.7812,2444.9,2444.1,4.59145]
[1730658073260,0.7812,2444.9,2444.1,0.5]
[1730658073261,0.7812,2444.4,2444.1,0.5]
[1730658073559,0.7812,2444.4,2444.1,4.59138]
[1730658074560,4.09059,2444.7,2444.2,4.09129]
[1730658074561,4.87179,2444.7,2444.2,4.09129]
[1730658074766,4.87179,2444.7,2444.2,8.1825]
[1730658075257,4.87179,2444.7,2444.3,4.09108]
[1730658075463,0.7812,2444.7,2444.3,4.09108]
[1730658076831,4.87168,2444.7,2444.2,4.09121]
[1730658077028,6.105685,2444.7,2444.2,4.09121]
[1730658077223,6.105685,2444.7,2444.2,8.18242]
[1730658077425,6.105685,2444.7,2444.2,4.09121]
[1730658078218,6.105685,2444.7,2444.2,8.18243]
[1730658079121,6.105685,2444.7,2444.3,4.0911]
[1730658079323,6.105685,2444.7,2444.2,4.09121]
[1730658079565,4.09066,2444.6,2444.2,4.09121]
[1730658081432,6.105835,2444.7,2444.2,4.09121]
[1730658081635,0.7633,2444.5,2444.1,0.5]
[1730658082159,0.7633,2444.5,2444.1,4.59145]
[1730658082759,0.7633,2444.5,2444.1,0.5]
[1730658082944,4.09128,2444.3,2444.1,0.5]
[1730658083146,1.172428,2444.2,2444.1,0.5]
[1730658083666,5.263738,2444.2,2444.1,0.5]
[1730658084259,1.172428,2444.2,2444.1,0.5]
[1730658085121,0.7633,2444.2,2444.1,0.5]
[1730658086354,4.85461,2444.2,2444.1,0.5]
[1730658087206,0.7633,2444.2,2444.1,0.5]
[1730658087500,0.7633,2444.2,2443.9,4.0918]
[1730658088172,0.7633,2444.2,2443.9,4.09173]
[1730658089993,0.7633,2444.2,2443.8,4.09186]
[1730658090203,1.70185525,2444.3,2444.0,4.09154]
[1730658090494,9.55616525,2444.4,2444.0,4.09154]
[1730658090709,1.70185525,2444.3,2444.0,4.09154]
[1730658090865,1.77244272,2444.3,2444.0,4.09154]
[1730658091056,6.21744188,2444.5,2444.2,4.09131]
[1730658091057,1.70185525,2444.5,2444.2,4.09131]
[1730658091257,3.0,2444.6,2444.0,0.74140515]
[1730658091482,1.70185525,2444.7,2444.4,4.09095]
[1730658091483,4.70185525,2444.7,2444.4,4.09095]
[1730658091687,5.46515525,2444.8,2444.4,4.09095]
[1730658091886,1.70185525,2444.7,2444.6,0.5]
[1730658092213,5.87004996,2444.7,2444.6,0.5]
[1730658092500,3.0,2444.7,2444.6,0.5]
[1730658092906,4.70185525,2444.7,2444.6,0.5]
[1730658093204,3.0,2444.7,2444.6,0.5]
[1730658093363,4.70185525,2444.7,2444.6,0.5]
[1730658093569,8.79233525,2444.7,2444.6,0.5]
[1730658093790,10.79429159,2444.7,2444.6,0.5]
[1730658093994,10.36872332,2444.7,2444.6,0.5]
[1730658095017,10.79394248,2444.7,2444.6,0.5]
[1730658095308,6.21668277,2444.7,2444.6,0.5]
[1730658096182,6.21668277,2444.7,2444.6,1.0]
[1730658096590,2.12620277,2444.7,2444.6,1.0]
[1730658096795,6.97983277,2444.8,2444.6,1.0]
[1730658097049,1.70118238,2444.7,2444.6,1.0]
[1730658097171,2.12620277,2444.7,2444.6,1.0]
[1730658097377,1.70132488,2444.7,2444.6,1.0]
[1730658097704,6.97983277,2444.8,2444.6,1.0]
[1730658098282,2.12620277,2444.7,2444.6,1.0]
[1730658098797,1.70152832,2444.7,2444.6,1.0]
[1730658099119,2.12620277,2444.7,2444.6,1.0]
[1730658099319,1.70176821,2444.7,2444.6,1.0]
[1730658100019,2.12705494,2444.7,2444.6,1.0]
[1730658100221,1.70191792,2444.7,2444.6,1.0]
[1730658100425,1.70193193,2444.7,2444.6,1.0]
[1730658100611,11.07112494,2444.8,2444.6,1.0]
[1730658100785,2.12705494,2444.7,2444.6,1.0]
[1730658103427,6.21753494,2444.7,2444.6,1.0]
[1730658103727,7.89098,2444.7,2444.6,1.0]
[1730658106331,4.89181,2444.2,2444.1,1.0]
[1730658106635,8.790107,2444.2,2444.1,1.0]
[1730658109632,4.698797,2444.2,2444.1,1.0]
[1730658109930,7.89181,2444.2,2444.1,1.0]
[1730658111824,7.96238128,2444.2,2444.1,1.0]
[1730658113938,7.89181,2444.2,2444.1,1.0]
[1730658114230,4.09116,2444.3,2444.1,1.0]
[1730658115138,8.18244,2444.3,2444.1,1.0]
[1730658115300,4.986074,2444.3,2444.1,1.0]
[1730658115638,7.85801,2444.2,2444.1,1.0]
[1730658121247,10.4121461,2444.2,2444.1,1.0]
[1730658121451,7.85801,2444.2,2444.1,1.0]
[1730658122557,6.6453161,2444.3,2444.1,1.0]
[1730658122712,4.09118,2444.3,2444.1,1.0]
[1730658123214,4.85801,2444.2,2444.1,1.0]
[1730658123440,7.4121461,2444.2,2444.1,1.0]
[1730658123655,7.41272513,2444.2,2444.1,1.0]
[1730658123859,7.41304305,2444.2,2444.1,1.0]
[1730658124585,7.41304305,2444.2,2443.6,0.08183717]
[1730658124586,4.88335,2443.7,2443.1,4.09303]
[1730658124869,4.88335,2443.7,2442.9,4.09349]
[1730658124870,1.70331622,2443.5,2442.9,4.09349]
[1730658125032,2.12914528,2443.6,2443.5,4.09249]
[1730658125473,3.0,2443.7,2443.5,4.09249]
[1730658125474,2.12914528,2443.7,2443.5,4.09249]
[1730658126231,1.70233055,2443.6,2443.5,4.09249]
[1730658126983,3.83147583,2443.9,2443.5,0.96743369]
[1730658127187,1.70233055,2444.0,2443.8,4.09194]
[1730658127333,1.70233055,2444.1,2443.8,4.09194]
[1730658127635,1.70233055,2444.0,2443.9,4.09182]
[1730658129647,1.70233055,2444.0,2443.9,4.82497746]
[1730658130065,1.70233055,2444.0,2443.9,0.73315746]
[1730658130573,1.70233055,2444.0,2443.9,4.82497746]
[1730658131997,1.70233055,2444.1,2443.9,4.82497746]
[1730658132134,1.70233055,2444.0,2443.9,4.82497746]
[1730658132942,1.70233055,2444.1,2444.0,4.09165]
[1730658133148,2.1285005,2444.2,2444.0,4.09165]
[1730658133346,1.70280083,2444.1,2444.0,4.09165]
[1730658133553,2.1285005,2444.2,2444.0,4.09165]
[1730658133776,2.1285005,2444.2,2444.1,4.09148]
[1730658134487,2.0785005,2444.2,2444.1,4.09148]
[1730658135938,2.0785005,2444.2,2444.0,4.09163]
[1730658136340,2.0785005,2444.2,2444.1,4.09148]
[1730658137196,2.5542006,2444.4,2444.1,4.09148]
[1730658137477,2.55433272,2444.6,2444.3,4.09115]
[1730658137641,2.55435157,2444.6,2444.3,4.09103]
[1730658137864,3.34545157,2444.7,2444.3,4.09103]
[1730658138677,2.55435157,2444.6,2444.3,4.09103]
[1730658138880,3.34545157,2444.7,2444.3,4.09103]
[1730658139697,3.34545157,2444.7,2444.4,4.09083]
[1730658139890,2.55435157,2444.7,2444.4,0.81497193]
[1730658140052,2.55435157,2444.8,2444.4,4.82404746]
[1730658140687,4.09053,2444.7,2444.3,4.09113]
[1730658140894,1.70262677,2444.4,2444.3,4.09113]
[1730658142794,1.70262677,2444.5,2444.3,4.09113]
[1730658143165,1.70262677,2444.4,2444.3,4.09113]
[1730658143679,1.70262677,2444.4,2444.0,4.09155]
[1730658143997,1.70262677,2444.4,2444.1,4.09148]
[1730658144205,1.70262677,2444.3,2444.2,4.09131]
[1730658144385,1.70262677,2444.3,2444.1,4.09148]
[1730658145414,1.70262677,2444.3,2444.1,8.18287]
[1730658146110,1.70262677,2444.3,2444.2,4.09131]
[1730658147309,2.12901666,2444.4,2444.2,4.09131]
[1730658147514,1.70329688,2444.3,2444.2,4.09131]
[1730658148214,2.12901666,2444.4,2444.2,4.09131]
[1730658148602,7.40128999,2444.6,2444.2,4.09131]
[1730658148603,2.12901666,2444.3,2444.2,4.09131]
[1730658148907,2.12901666,2444.4,2444.2,4.09131]
[1730658150280,1.70356097,2444.3,2444.2,4.09131]
[1730658150616,2.12901666,2444.4,2444.2,4.09131]
[1730658150914,2.12901666,2444.3,2444.2,4.09131]
[1730658151220,2.12901666,2444.4,2444.2,4.09131]
[1730658151525,3.09821306,2444.3,2444.1,4.09146]
[1730658151817,1.70358424,2444.2,2444.1,4.09146]
[1730658151974,2.88531139,2444.3,2444.1,4.09146]
[1730658152173,2.12951139,2444.2,2444.1,4.09146]
[1730658153803,2.12951139,2444.2,2444.0,4.09164]
[1730658154131,1.99223258,2444.1,2444.0,4.09164]
[1730658154290,1.70370144,2444.1,2444.0,4.09164]
[1730658154487,1.70370144,2444.1,2443.9,4.09178]
[1730658154838,1.70370144,2444.0,2443.9,4.09178]
[1730658155901,0.7983,2443.9,2443.6,4.09216]
[1730658156105,1.99645335,2443.8,2443.4,4.09255]
[1730658156435,1.70365957,2443.7,2443.5,4.09232]
[1730658156944,2.12963783,2443.8,2443.5,4.09232]
[1730658156945,1.70365957,2443.6,2443.5,4.09232]
[1730658157718,1.70365957,2443.6,2443.3,4.09273]
[1730658157907,1.70322823,2443.6,2443.3,4.04273]
[1730658158116,1.70322823,2443.5,2443.3,4.04273]
[1730658158342,2.88481484,2443.5,2443.1,4.09308]
[1730658158492,1.70322823,2443.4,2443.1,4.09308]
[1730658158696,1.70322823,2443.4,2443.2,4.09296]
[1730658158932,1.70322823,2443.3,2443.2,4.09296]
[1730658159114,1.70322823,2443.4,2443.2,4.09296]
[1730658162350,2.50152823,2443.5,2443.2,4.09296]
[1730658163576,2.50152823,2443.5,2443.1,4.09308]
[1730658163779,2.16611854,2443.4,2443.1,4.09308]
[1730658163936,2.50152823,2443.5,2443.1,4.09308]
[1730658164137,2.50152823,2443.5,2443.1,8.18614]
[1730658164562,2.50152823,2443.5,2443.3,4.09281]
[1730658165169,2.50152823,2443.5,2443.2,4.09298]
[1730658166277,2.50152823,2443.5,2443.1,4.09313]
[1730658166944,2.50152823,2443.5,2443.2,4.09295]
[1730658167762,2.50152823,2443.5,2443.1,4.09313]
[1730658168072,2.50152823,2443.5,2443.1,8.18617]
[1730658169078,0.7983,2443.5,2443.1,8.18617]
[1730658169272,2.50152823,2443.5,2443.1,8.18617]
[1730658169965,0.7983,2443.5,2443.1,8.18617]
[1730658170675,0.7983,2443.5,2443.2,4.09291]
[1730658172556,0.7983,2443.5,2443.2,4.17476182]
[1730658172974,0.7983,2443.5,2443.2,4.09291]
[1730658175804,0.7983,2443.5,2443.2,4.1747604]
[1730658177300,0.7983,2443.5,2443.2,4.09291]
[1730658178664,9.00145,2443.7,2443.2,4.09291]
[1730658178858,4.09232,2443.6,2443.2,4.09291]
[1730658179059,4.90916,2443.7,2443.2,4.09291]
[1730658179276,9.00142,2443.7,2443.2,4.09291]
[1730658179477,4.90916,2443.7,2443.1,4.09304]
[1730658179681,4.90916,2443.7,2443.3,4.09282]
[1730658179853,5.809271,2443.7,2443.3,4.09282]
[1730658180493,0.817,2443.7,2443.4,4.09263]
[1730658180846,4.90916,2443.7,2443.3,4.09282]
[1730658182654,0.817,2443.7,2443.3,8.18555]
[1730658182872,0.817,2443.7,2443.3,4.09273]
[1730658183704,0.817,2443.7,2443.4,4.17449572]
[1730658185007,0.817,2443.7,2443.3,8.18543]
[1730658187589,0.07049698,2443.6,2443.3,8.18543]
[1730658187866,0.07049698,2443.6,2443.5,4.09249]
[1730658188068,0.817,2443.7,2443.5,8.1849]
[1730658188268,1.69832772,2443.9,2443.6,4.09224]
[1730658189616,2.51532772,2444.0,2443.7,4.09214]
[1730658189930,2.51532772,2444.0,2443.7,8.18421]
[1730658190214,2.51532772,2444.0,2443.7,4.09207]
[1730658190702,1.69832772,2444.0,2443.7,8.18414]
[1730658191068,1.69832772,2444.0,2443.7,4.09207]
[1730658192015,1.69832772,2444.0,2443.8,0.08183227]
[1730658192218,1.69832772,2444.0,2443.9,4.09182]
[1730658192407,1.69832772,2444.1,2444.0,4.09165]
[1730658192574,1.69832772,2444.2,2443.9,4.09182]
[1730658193095,1.69832772,2444.1,2443.9,4.09182]
[1730658193303,1.69832772,2444.2,2443.9,4.09182]
[1730658193502,1.69832772,2444.1,2443.9,4.09182]
[1730658193892,1.69832772,2444.2,2443.9,4.09182]
[1730658194328,1.69832772,2444.1,2443.9,4.09182]
[1730658194862,1.69832772,2444.2,2443.9,4.09182]
[1730658195119,1.69832772,2444.1,2443.8,4.09198]
[1730658195708,1.69832772,2444.1,2443.8,8.18384]
[1730658196087,1.69832772,2444.1,2443.8,4.09186]
[1730658196297,1.69832772,2444.1,2443.9,4.09177]
[1730658205934,1.69832772,2444.1,2443.8,4.09186]
[1730658206241,1.69832772,2444.1,2443.8,8.18377]
[1730658207000,3.28692349,2444.1,2443.8,4.09186]
[1730658207612,2.49532772,2444.1,2443.8,4.09186]
[1730658207826,2.49532772,2444.1,2443.8,8.18373]
[1730658208801,2.49532772,2444.1,2443.8,8.18377]
[1730658209635,2.49532772,2444.1,2443.8,4.09186]
[1730658210015,2.49532772,2444.1,2443.8,8.18376]
[1730658210698,2.49532772,2444.1,2443.9,4.0918]
[1730658211039,2.49532772,2444.1,2443.8,4.09186]
[1730658211636,2.49532772,2444.1,2443.8,8.18377]
[1730658211846,2.49532772,2444.1,2443.9,4.09181]
[1730658214143,1.69832772,2444.1,2444.0,4.17347718]
[1730658214344,1.69832772,2444.2,2444.1,4.09148]
[1730658214554,1.69832772,2444.3,2444.1,4.09148]
[1730658214845,1.69832772,2444.2,2444.1,4.09148]
[1730658215525,1.69832772,2444.2,2444.1,4.59148]
[1730658216819,1.69832772,2444.3,2444.2,4.09131]
[1730658220682,1.69832772,2444.3,2444.1,5.09147]
[1730658222683,1.69832772,2444.2,2444.1,1.0]
[1730658222894,2.27909277,2444.2,2444.1,1.0]
[1730658223320,1.69832772,2444.2,2444.1,1.0]
[1730658224322,2.87967602,2444.3,2444.1,1.0]
[1730658225115,2.12577602,2444.2,2444.1,1.0]
[1730658226017,0.7539,2444.3,2444.1,1.0]
[1730658226333,2.12724968,2444.2,2444.1,1.0]
[1730658227795,6.97234968,2444.3,2444.1,1.0]
[1730658228002,1.70222196,2444.2,2444.1,1.0]
[1730658228223,2.12724968,2444.2,2444.1,1.0]
[1730658228412,3.95661929,2444.3,2444.1,1.0]
[1730658229334,2.12724968,2444.2,2444.1,1.0]
[1730658229528,1.82936961,2444.3,2444.1,1.0]
[1730658229529,3.95661929,2444.3,2444.1,1.0]
[1730658229733,2.12724968,2444.2,2444.1,1.0]
[1730658230732,2.12918699,2444.2,2444.1,1.0]
[1730658232909,2.13108073,2444.2,2444.1,1.0]
[1730658233327,0.7539,2444.3,2444.1,1.0]
[1730658235497,3.30892438,2444.3,2444.1,1.0]
[1730658235732,0.7539,2444.3,2444.1,1.0]
[1730658236257,3.30892438,2444.3,2444.1,1.0]
[1730658236664,4.04891482,2444.3,2444.1,1.0]
[1730658237523,4.05322586,2444.3,2444.1,1.0]
[1730658237924,3.31323542,2444.3,2444.1,1.0]
[1730658240227,3.3130823,2444.3,2444.1,1.0]
[1730658243223,2.5591823,2444.2,2444.1,1.0]